lending/lending_fUSD_20250819
["ID","MTS","AMOUNT","RATE_DAILY","PERIOD"]
[380251556,1755627725968,516.29,0.00022999,30]
[380251557,1755627726121,516.29,0.00022999,30]
[380251558,1755627726203,400.0,0.00022999,30]
[380251559,1755627726278,400.0,0.00022999,30]
[380251560,1755627726402,516.29,0.00022999,30]
[380251561,1755627726556,516.29,0.00022999,30]
[380251562,1755627727233,516.29,0.00022999,30]
[380251563,1755627727297,400.0,0.00022999,30]
[380251564,1755627727387,400.0,0.00022999,30]
[380251565,1755627727510,516.29,0.00022999,30]
[380251566,1755627727676,516.29,0.00022999,30]
[380251567,1755627727941,516.29,0.00022999,30]
[380251568,1755627728203,400.0,0.00022999,30]
[380251569,1755627728358,516.29,0.00022999,30]
[380251570,1755627728435,400.0,0.00022999,30]
[380251571,1755627728541,400.0,0.00022999,30]
[380251572,1755627730000,516.29,0.00022999,30]
[380251573,1755627730132,400.0,0.00022999,30]
[380251574,1755627730202,400.0,0.00022999,30]
[380251575,1755627730265,516.29,0.00022999,30]
[380251576,1755627730366,1324.91,0.00022999,30]
[380251577,1755627730556,489.88,0.00022999,30]
[380251578,1755627730780,516.38,0.00022999,30]
[380251579,1755627731016,1939.57,0.00022999,30]
[380251580,1755627731088,400.0,0.00022999,30]
[380251581,1755627731206,1317.47,0.00022999,30]
[380251582,1755627731295,400.0,0.00022999,30]
[380251583,1755627731927,400.0,0.00022999,30]
[380251584,1755627732068,153.42603513,0.00023,30]
[380251585,1755627732457,2760.57,0.00022999,30]
[380251586,1755627732526,200.0,0.00023,30]
[380251587,1755627732794,400.0,0.00022999,30]
[380251588,1755627733069,400.0,0.00022999,30]
[380251589,1755627733440,400.0,0.00022999,30]
[380251590,1755627733556,1168.53,0.00022999,30]
[380251591,1755627733620,400.0,0.00022999,30]
[380251592,1755627734700,400.0,0.00022999,30]
[380251593,1755627734950,400.0,0.00022999,30]
[380251594,1755627735401,2545.84,0.00022999,30]
[380251595,1755627735584,400.0,0.00022999,30]
[380251596,1755627735661,150.0,0.00023,30]
[380251597,1755627735884,400.0,0.00022999,30]
[380251598,1755627736208,2989.57,0.00022999,30]
[380251599,1755627736325,400.0,0.00022999,30]
[380251600,1755627736386,400.0,0.00022999,30]
[380251601,1755627736504,2807.33,0.00022999,30]
[380251602,1755627736831,400.0,0.00022999,30]
[380251603,1755627736981,500.0,0.00023,30]
[380251604,1755627737067,400.0,0.00022999,30]
[380251605,1755627737327,400.0,0.00022999,30]
[380251606,1755627737410,4120.84,0.00022999,30]
[380251607,1755627737510,150.0,0.00023,30]
[380251608,1755627737589,400.0,0.00022999,30]
[380251609,1755627737862,400.0,0.00022999,30]
[380251610,1755627737956,3300.58,0.00022999,30]
[380251611,1755627738025,1071.54,0.00022999,30]
[380251612,1755627738325,6498.66,0.00022999,30]
[380251613,1755627738424,5346.76,0.00022999,30]
[380251614,1755627738610,150.0,0.00023,30]
[380251615,1755627738832,410.55,0.00022999,30]
[380251616,1755627739400,1592.63,0.00022999,30]
[380251617,1755627739477,400.0,0.00022999,30]
[380251618,1755627739579,400.0,0.00022999,30]
[380251619,1755627739675,4968.41,0.00022999,30]
[380251620,1755627739758,3018.01,0.00022999,30]
[380251621,1755627739890,150.0,0.00023,30]
[380251622,1755627740965,400.0,0.00022999,30]
[380251623,1755627741089,400.0,0.00022999,30]
[380251624,1755627741518,400.0,0.00022999,30]
[380251625,1755627741875,5143.18,0.00022999,30]
[380251626,1755627741943,782.61,0.00022999,30]
[380251627,1755627742153,400.0,0.00022999,30]
[380251628,1755627742343,500.0,0.00023,30]
[380251629,1755627742479,1437.17,0.00022999,30]
[380251630,1755627742936,2783.39,0.00022999,30]
[380251631,1755627743514,1424.04,0.00022999,30]
[380251632,1755627743668,850.6,0.00022999,30]
[380251633,1755627744611,2269.25,0.00022999,30]
[380251634,1755627744777,966.62,0.00022999,30]
[380251635,1755627744863,400.0,0.00022999,30]
[380251636,1755627745029,1313.16,0.00022999,30]
[380251637,1755627745156,3834.55,0.00022999,30]
[380251638,1755627745328,400.0,0.00022999,30]
[380251639,1755627745562,3149.03,0.00022999,30]
[380251640,1755627746044,400.0,0.00022999,30]
[380251641,1755627746109,1706.06,0.00022999,30]
[380251642,1755627746244,3375.23,0.00022999,30]
[380251643,1755627747129,2493.32,0.00022999,30]
[380251644,1755627747642,2727.72,0.00022999,30]
[380251645,1755627747723,500.27,0.00022999,30]
[380251646,1755627747996,400.0,0.00022999,30]
[380251647,1755627748136,400.0,0.00022999,30]
[380251648,1755627748555,3498.83,0.00022999,30]
[380251649,1755627749230,400.0,0.00022999,30]
[380251650,1755627750401,2322.44,0.00022999,30]
[380251651,1755627750501,3332.4,0.00022999,30]
[380251652,1755627752157,400.0,0.00022999,30]
[380251653,1755627752223,400.0,0.00022999,30]
[380251654,1755627752309,400.0,0.00022999,30]
[380251655,1755627752531,632.57,0.00022999,30]
[380251656,1755627752757,400.0,0.00022999,30]
[380251657,1755627754080,400.0,0.00022999,30]
[380251658,1755627754751,491.09,0.00022999,30]
[380251659,1755627755086,400.0,0.00022999,30]
[380251660,1755627755173,2187.7,0.00022999,30]
[380251661,1755627755475,2650.6,0.00022999,30]
[380251662,1755627755624,400.0,0.00022999,30]
[380251663,1755627755707,400.0,0.00022999,30]
[380251664,1755627755835,425.5,0.00022999,30]
[380251665,1755627755931,1871.91,0.00022999,30]
[380251666,1755627756260,400.0,0.00022999,30]
[380251667,1755627756381,400.0,0.00022999,30]
[380251668,1755627756520,400.0,0.00022999,30]
[380251669,1755627756640,2400.35,0.00022999,30]
[380251670,1755627756722,2046.04,0.00022999,30]
[380251671,1755627756900,400.0,0.00022999,30]
[380251672,1755627756963,2145.12,0.00022999,30]
[380251673,1755627757164,488.37,0.00022999,30]
[380251674,1755627757328,403.67033525,0.00022999,30]
[380251675,1755627757412,400.0,0.00022999,30]
[380251676,1755627758252,2591.38,0.00022999,30]
[380251677,1755627758834,400.0,0.00022999,30]
[380251678,1755627759454,1422.18,0.00022999,30]
[380251679,1755627759529,5593.46,0.00022999,30]
[380251680,1755627759649,1422.18,0.00022999,30]
[380251681,1755627759878,1422.18,0.00022999,30]
[380251682,1755627759996,1422.18,0.00022999,30]
[380251683,1755627760061,2226.17,0.00022999,30]
[380251684,1755627760201,2531.96,0.00022999,30]
[380251685,1755627760278,1024.84,0.00022999,30]
[380251686,1755627760399,1422.18,0.00022999,30]
[380251687,1755627760611,1422.18,0.00022999,30]
[380251688,1755627760770,1422.18,0.00022999,30]
[380251689,1755627760845,500.0,0.00023,30]
[380251690,1755627761725,4276.22,0.00022999,30]
[380251691,1755627762598,2427.54,0.00022999,30]
[380251692,1755627762790,1422.18,0.00022999,30]
[380251693,1755627763025,1422.18,0.00022999,30]
[380251694,1755627763225,1422.18,0.00022999,30]
[380251695,1755627763489,1422.18,0.00022999,30]
[380251696,1755627764002,1422.18,0.00022999,30]
[380251697,1755627764197,1422.18,0.00022999,30]
[380251698,1755627764438,2020.82,0.00022999,30]
[380251699,1755627764516,1422.18,0.00022999,30]
[380251700,1755627764660,1422.18,0.00022999,30]
[380251701,1755627764866,1422.18,0.00022999,30]
[380251702,1755627764945,676.0,0.00022999,30]
[380251703,1755627765020,522.33,0.00022999,30]
[380251704,1755627765100,400.0,0.00022999,30]
[380251705,1755627765282,1422.18,0.00022999,30]
[380251706,1755627765404,803.17,0.00022999,30]
[380251707,1755627765506,1422.18,0.00022999,30]
[380251708,1755627765592,1453.65,0.00022999,30]
[380251709,1755627765655,2534.12,0.00022999,30]
[380251710,1755627765755,802.28,0.00022999,30]
[380251711,1755627765823,563.89,0.00022999,30]
[380251712,1755627765901,1422.18,0.00022999,30]
[380251713,1755627765997,477.88,0.00022999,30]
[380251714,1755627766065,400.0,0.00022999,30]
[380251715,1755627766144,1422.18,0.00022999,30]
[380251716,1755627766293,1422.18,0.00022999,30]
[380251717,1755627766510,1422.18,0.00022999,30]
[380251718,1755627766632,1422.18,0.00022999,30]
[380251719,1755627766772,1422.32016579,0.00022999,30]
[380251720,1755627767202,3010.34,0.00022999,30]
[380251721,1755627767283,200.23478317,0.00022999,30]
[380251722,1755627767365,400.0,0.00022999,30]
[380251723,1755627767603,668.73,0.00022999,30]
[380251724,1755627769613,400.0,0.00022999,30]
[380251725,1755627769828,2725.15,0.00022999,30]
[380251726,1755627769992,400.0,0.00022999,30]
[380251727,1755627770137,518.69,0.00022999,30]
[380251728,1755627770264,2942.83,0.00022999,30]
[380251729,1755627770666,3262.42,0.00022999,30]
[380251730,1755627770752,217.83648334,0.00022999,30]
[380251731,1755627770840,400.0,0.00022999,30]
[380251732,1755627770988,400.0,0.00022999,30]
[380251733,1755627771178,3763.86,0.00022999,30]
[380251734,1755627772045,400.0,0.00022999,30]
[380251735,1755627772240,400.0,0.00022999,30]
[380251736,1755627773576,922.79,0.00022999,30]
[380251737,1755627773704,593.0,0.00022999,30]
[380251738,1755627773866,811.3,0.00022999,30]
[380251739,1755627774017,1129.7,0.00022999,30]
[380251740,1755627774633,2569.72,0.00022999,30]
[380251741,1755627774700,400.0,0.00022999,30]
[380251742,1755627774782,656.69,0.00022999,30]
[380251743,1755627774862,4876.03,0.00022999,30]
[380251744,1755627776054,202.3212292,0.00022999,30]
[380251745,1755627776190,3040.31,0.00022999,30]
[380251746,1755627776376,1126.63,0.00022999,30]
[380251747,1755627776438,779.52,0.00022999,30]
[380251748,1755627776994,400.0,0.00022999,30]
[380251749,1755627777068,400.0,0.00022999,30]
[380251750,1755627777130,400.0,0.00022999,30]
[380251751,1755627777683,487.54,0.00022999,30]
[380251752,1755627777862,2335.53,0.00022999,30]
[380251753,1755627777940,4948.67,0.00022999,30]
[380251754,1755627778793,2589.64,0.00022999,30]
[380251755,1755627779130,400.0,0.00022999,30]
[380251756,1755627779280,16455.96,0.00022999,30]
[380251757,1755627779602,409.59636056,0.00022999,30]
[380251758,1755627781046,400.0,0.00022999,30]
[380251759,1755627781145,3464.72,0.00022999,30]
[380251760,1755627781830,400.0,0.00022999,30]
[380251761,1755627781965,2235.22,0.00022999,30]
[380251762,1755627782074,944.4,0.00022999,30]
[380251763,1755627782158,400.0,0.00022999,30]
[380251764,1755627782739,2623.64,0.00022999,30]
[380251765,1755627783368,724.99,0.00022999,30]
[380251766,1755627784378,400.0,0.00022999,30]
[380251767,1755627784858,3007.62,0.00022999,30]
[380251768,1755627784942,453.57,0.00022999,30]
[380251769,1755627785046,1985.35,0.00022999,30]
[380251770,1755627785509,582.11,0.00022999,30]
[380251771,1755627785804,998.09,0.00022999,30]
[380251772,1755627785871,2675.69,0.00022999,30]
[380251773,1755627786029,2938.7,0.00022999,30]
[380251774,1755627786320,400.0,0.00022999,30]
[380251775,1755627786436,400.0,0.00022999,30]
[380251776,1755627786669,6567.81,0.00022999,30]
[380251777,1755627786794,591.8,0.00022999,30]
[380251778,1755627787694,4602.39,0.00022999,30]
[380251779,1755627787817,1397.09,0.00022999,30]
[380251780,1755627787966,400.0,0.00022999,30]
[380251781,1755627788238,4792.5,0.00022999,30]
[380251782,1755627788370,1399.77,0.00022999,30]
[380251783,1755627788506,400.0,0.00022999,30]
[380251784,1755627788764,400.0,0.00022999,30]
[380251785,1755627789202,10633.85,0.00022999,30]
[380251786,1755627789272,415.38,0.00022999,30]
[380251787,1755627789377,846.19857976,0.00022999,30]
[380251801,1755628231601,-161.92,9.689e-05,2]
[380251802,1755628231611,-405.98,9.75e-05,2]
[380251803,1755628231663,-101.8,9.75e-05,2]
[380251804,1755628231673,-426.28,9.761e-05,2]
[380251805,1755628231682,-190.0,9.77e-05,2]
[380251806,1755628231691,-190.53,9.802e-05,2]
[380251807,1755628231700,-150.00000001,0.00010085,2]
[380251808,1755628231709,-335.37,0.00010113,2]
[380251809,1755628231719,-158.02,0.00010137,2]
[380251810,1755628231729,-170.0,0.00010261,7]
[380251811,1755628231738,-166.67,0.00010391,2]
[380251812,1755628231747,-587.18221285,0.00010392,2]
[380251813,1755628231756,-150.0,0.00010413,2]
[380251814,1755628231766,-500.0,0.00010414,2]
[380251815,1755628231776,-500.0,0.00010414,2]
[380251816,1755628231785,-500.0,0.00010414,2]
[380251817,1755628231794,-500.0,0.00010414,2]
[380251818,1755628231803,-500.0,0.00010414,2]
[380251819,1755628231812,-500.0,0.00010414,2]
[380251820,1755628231822,-500.0,0.00010414,2]
[380251822,1755628231832,-500.0,0.00010414,2]
[380251824,1755628231841,-456.10820129,0.00010414,2]
[380251826,1755628231852,-500.0,0.00010414,2]
[380251828,1755628231871,-500.0,0.00010414,2]
[380251830,1755628231886,-500.0,0.00010414,2]
[380251832,1755628231897,-500.0,0.00010414,2]
[380251834,1755628231908,-500.0,0.00010414,2]
[380251836,1755628231917,-500.0,0.00010414,2]
[380251838,1755628231927,-500.0,0.00010414,2]
[380251840,1755628231944,-500.0,0.00010414,2]
[380251842,1755628231953,-500.0,0.00010414,2]
[380251845,1755628231962,-500.0,0.00010414,2]
[380251847,1755628231972,-500.0,0.00010414,2]
[380251850,1755628231981,-500.0,0.00010414,2]
[380251852,1755628231990,-500.0,0.00010414,2]
[380251854,1755628231999,-500.0,0.00010414,2]
[380251857,1755628232008,-500.0,0.00010414,2]
[380251858,1755628232017,-500.0,0.00010414,2]
[380251860,1755628232026,-500.0,0.00010414,2]
[380251861,1755628232035,-500.0,0.00010414,2]
[380251862,1755628232045,-604.97381159,0.00010414,2]
[380251863,1755628232054,-500.0,0.00010414,2]
[380251864,1755628232063,-500.0,0.00010414,2]
[380251865,1755628232072,-500.0,0.00010414,2]
[380251866,1755628232081,-500.0,0.00010414,2]
[380251867,1755628232090,-531.44648411,0.0001042,2]
[380251868,1755628232099,-34899.66120286,0.00010421,2]
[380251869,1755628232107,-3000.0,0.00010449,2]
[380251870,1755628232116,-277.35679052,0.00010449,2]
[380251871,1755628232126,-9274.81107495,0.00010449,2]
[380251872,1755628232135,-9617.97908473,0.00010504,2]
[380251873,1755628232145,-493.0,0.00010512,2]
[380251874,1755628232154,-9973.84431086,0.00010559,2]
[380251875,1755628232163,-250.0,0.00010571,2]
[380251876,1755628232172,-10342.87655036,0.00010614,2]
[380251877,1755628232181,-10725.56298272,0.00010669,2]
[380251878,1755628232190,-300.0,0.00010737,2]
[380251879,1755628232199,-737.72115641,0.0001078,2]
[380251880,1755628232209,-257.0,0.00010815,2]
[380251881,1755628232218,-198.0,0.00010893,2]
[380251882,1755628232231,-300.0,0.00010893,2]
[380251883,1755628232241,-160.0,0.00010893,2]
[380251884,1755628232251,-500.0,0.00010893,2]
[380251885,1755628232260,-466.63,0.00010893,2]
[380251886,1755628232270,-200.0,0.00010893,2]
[380251887,1755628232280,-578.33984774,0.00010893,2]
[380251888,1755628232290,-36855.9487,0.000109,2]
[380251889,1755628232299,-175.9052,0.000109,2]
[380251890,1755628232310,-1000.0,0.000109,2]
[380251891,1755628232319,-185.38330446,0.000109,2]
[380251892,1755628232329,-175.81769023,0.00010923,2]
[380251893,1755628232338,-20996.53074506,0.00010934,2]
[380251894,1755628232349,-175.81769023,0.00010935,2]
[380251895,1755628232359,-175.81769023,0.00010938,2]
[380251896,1755628232369,-175.81769023,0.00010942,2]
[380251897,1755628232378,-500.0,0.00010948,2]
[380251898,1755628232387,-185.38330444,0.0001095,2]
[380251899,1755628232396,-186.0,0.0001095,2]
[380251900,1755628232405,-20996.53074506,0.00010956,2]
[380251901,1755628232415,-175.81769023,0.00010957,2]
[380251902,1755628232423,-20996.53074506,0.00010966,2]
[380251903,1755628232433,-175.81769023,0.0001097,2]
[380251904,1755628232442,-628.41866633,0.00010973,2]
[380251905,1755628232451,-20996.53074506,0.00010983,2]
[380251906,1755628232460,-20996.53074506,0.00010984,2]
[380251907,1755628232470,-858.8510794,0.00010986,2]
[380251908,1755628232480,-36040.6846026,0.00010986,2]
[380251909,1755628232489,-1867.3988008,0.00010986,2]
[380251910,1755628232499,-8828.443971,0.00010986,2]
[380251911,1755628232508,-175.81769023,0.00010994,2]
[380251912,1755628232517,-20996.53074506,0.00010995,2]
[380251913,1755628232526,-400.0,0.00010999,2]
[380251914,1755628232535,-185.38330444,0.00010999,2]
[380251915,1755628232544,-20996.53074506,0.00011,2]
[380251916,1755628232554,-33397.34471697,0.00011,2]
[380251917,1755628232563,-114611.36,0.00011,2]
[380251918,1755628232572,-409426.9494124,0.00011,2]
[380251919,1755628232584,-1466.339985,0.00011,2]
[380251920,1755628232595,-477.07655682,0.00011,2]
[380251921,1755628232605,-781.20498318,0.00011,2]
[380251922,1755628237400,-250.0,9.676e-05,2]
[380251923,1755628237410,-425.03158596,0.00011,2]
[380251924,1755628237421,-275.77795541,0.00011,2]
[380251925,1755628237458,-571.43,0.00011,2]
[380251926,1755628237513,-294.75802627,0.00011,2]
[380251927,1755628237527,-187338.79961024,0.00011,2]
[380251928,1755628237537,-1699251.24134145,0.00011,2]
[380251929,1755628237546,-19304.58,0.00011,2]
[380251930,1755628237555,-250000.0,0.00011,2]
[380251931,1755628237564,-340062.16,0.00011,2]
[380251932,1755628237574,-476.0534295,0.00011,2]
[380251933,1755628237583,-953010.62166744,0.00011,2]
[380251934,1755628237592,-6009884.83950068,0.00011,2]
[380251935,1755628237625,-549.00896293,0.00011,2]
[380251936,1755628237637,-1888.0,0.00011,2]
[380251937,1755628237736,-809.06856495,0.00011,2]
[380251939,1755628237747,-1890.71086664,0.00011,2]
[380251940,1755628237758,-7565.49797971,0.00011,2]
[380252411,1755628242486,-2383.51992171,0.00011,2]
[380252418,1755628242542,-2359.0988197,0.00011,2]
[380252429,1755628242652,-589.6891,0.00011,2]
[380252432,1755628242663,-340.755,0.00011,2]
[380252438,1755628242717,-27724.28187556,0.00011,2]
[380252440,1755628242726,-10006.80479438,0.00011,2]
[380252652,1755628246347,-2257.89999769,0.00011,2]
[380252653,1755628247173,183.0,9.2e-05,2]
[380253151,1755628788371,179.0,8.2e-05,2]
[380253152,1755628790060,175.0,9.38e-05,2]
[380253153,1755628795478,1620.315604,9e-05,2]
[380253154,1755629040430,-1977.39,0.00021945,30]
[380253155,1755629040472,-272.32924987,0.00022999,30]
[380253156,1755629040502,-400.0,0.00022999,30]
[380253157,1755629040533,-400.0,0.00022999,30]
[380253158,1755629040563,-400.0,0.00022999,30]
[380253159,1755629040593,-199.68087844,0.00022999,30]
[380253160,1755629040623,-400.0,0.00022999,30]
[380253161,1755629040655,-400.0,0.00022999,30]
[380253162,1755629040685,-400.0,0.00022999,30]
[380253163,1755629040714,-400.0,0.00022999,30]
[380253164,1755629040742,-400.0,0.00022999,30]
[380253165,1755629040770,-400.0,0.00022999,30]
[380253166,1755629040801,-400.0,0.00022999,30]
[380253167,1755629040829,-400.0,0.00022999,30]
[380253168,1755629040856,-400.0,0.00022999,30]
[380253169,1755629040885,-400.0,0.00022999,30]
[380253170,1755629040916,-400.0,0.00022999,30]
[380253171,1755629040944,-400.0,0.00022999,30]
[380253172,1755629040973,-400.0,0.00022999,30]
[380253173,1755629041003,-400.0,0.00022999,30]
[380253174,1755629041033,-400.0,0.00022999,30]
[380253175,1755629041062,-400.0,0.00022999,30]
[380253176,1755629041092,-400.0,0.00022999,30]
[380253177,1755629041123,-400.0,0.00022999,30]
[380253178,1755629041152,-400.0,0.00022999,30]
[380253179,1755629041181,-400.0,0.00022999,30]
[380253180,1755629041210,-1546.63,0.00022999,30]
[380253181,1755629041239,-400.0,0.00022999,30]
[380253182,1755629041267,-400.0,0.00022999,30]
[380253183,1755629041296,-400.0,0.00022999,30]
[380253184,1755629041324,-400.0,0.00022999,30]
[380253185,1755629041357,-400.0,0.00022999,30]
[380253186,1755629041387,-400.0,0.00022999,30]
[380253187,1755629041416,-400.0,0.00022999,30]
[380253188,1755629041446,-400.0,0.00022999,30]
[380253189,1755629041477,-400.0,0.00022999,30]
[380253190,1755629041506,-400.0,0.00022999,30]
[380253191,1755629041536,-408.14,0.00022999,30]
[380253192,1755629041566,-1356.98,0.00022999,30]
[380253193,1755629041597,-2500.24,0.00022999,30]
[380253194,1755629041627,-310.0,0.00022999,30]
[380253195,1755629041658,-400.0,0.00022999,30]
[380253196,1755629041689,-400.0,0.00022999,30]
[380253197,1755629041720,-400.0,0.00022999,30]
[380253198,1755629041750,-400.0,0.00022999,30]
[380253199,1755629041782,-400.0,0.00022999,30]
[380253200,1755629041810,-400.0,0.00022999,30]
[380253201,1755629041839,-400.0,0.00022999,30]
[380253202,1755629041867,-1500.68,0.00022999,30]
[380253203,1755629041898,-571.12,0.00022999,30]
[380253204,1755629041926,-400.0,0.00022999,30]
[380253205,1755629041955,-400.0,0.00022999,30]
[380253206,1755629041992,-400.0,0.00022999,30]
[380253207,1755629042022,-400.0,0.00022999,30]
[380253208,1755629042054,-1837.02,0.00022999,30]
[380253209,1755629042083,-619.32,0.00022999,30]
[380253210,1755629042118,-549.78,0.00022999,30]
[380253211,1755629042150,-400.0,0.00022999,30]
[380253212,1755629042185,-400.0,0.00022999,30]
[380253213,1755629042217,-705.78,0.00022999,30]
[380253214,1755629042246,-400.0,0.00022999,30]
[380253215,1755629042280,-806.89,0.00022999,30]
[380253216,1755629042309,-400.0,0.00022999,30]
[380253217,1755629042339,-400.0,0.00022999,30]
[380253218,1755629042368,-1081.56,0.00022999,30]
[380253219,1755629042397,-400.0,0.00022999,30]
[380253220,1755629042426,-421.78,0.00022999,30]
[380253221,1755629042454,-1207.42,0.00022999,30]
[380253222,1755629042484,-400.0,0.00022999,30]
[380253223,1755629042514,-400.0,0.00022999,30]
[380253224,1755629042544,-1269.26,0.00022999,30]
[380253225,1755629042573,-400.0,0.00022999,30]
[380253226,1755629042610,-400.0,0.00022999,30]
[380253227,1755629042643,-1163.74,0.00022999,30]
[380253228,1755629042674,-820.7,0.00022999,30]
[380253229,1755629042703,-400.0,0.00022999,30]
[380253230,1755629042733,-1759.86,0.00022999,30]
[380253231,1755629042763,-407.3,0.00022999,30]
[380253232,1755629042798,-400.0,0.00022999,30]
[380253233,1755629042828,-1136.92,0.00022999,30]
[380253234,1755629042859,-1391.2,0.00022999,30]
[380253235,1755629042888,-1852.53,0.00022999,30]
[380253236,1755629042918,-400.0,0.00022999,30]
[380253237,1755629042950,-1192.44,0.00022999,30]
[380253238,1755629042980,-480.15,0.00022999,30]
[380253239,1755629043011,-400.0,0.00022999,30]
[380253240,1755629043046,-835.15,0.00022999,30]
[380253241,1755629043079,-2807.37,0.00022999,30]
[380253242,1755629043113,-400.0,0.00022999,30]
[380253243,1755629043148,-400.0,0.00022999,30]
[380253244,1755629043187,-400.0,0.00022999,30]
[380253245,1755629043225,-400.0,0.00022999,30]
[380253246,1755629043262,-400.0,0.00022999,30]
[380253247,1755629043299,-400.0,0.00022999,30]
[380253248,1755629043335,-190.95434465,0.00022999,30]
[380253249,1755629043370,-400.0,0.00022999,30]
[380253250,1755629043404,-561.73,0.00022999,30]
[380253251,1755629043438,-507.75014371,0.00022999,30]
[380253252,1755629043470,-400.0,0.00022999,30]
[380253253,1755629043504,-664.52,0.00022999,30]
[380253254,1755629043538,-400.0,0.00022999,30]
[380253255,1755629043575,-518.49,0.00022999,30]
[380253256,1755629043610,-543.61399628,0.00022999,30]
[380253257,1755629043646,-400.0,0.00022999,30]
[380253258,1755629043680,-741.88,0.00022999,30]
[380253259,1755629043713,-400.0,0.00022999,30]
[380253260,1755629043747,-400.0,0.00022999,30]
[380253261,1755629043786,-400.0,0.00022999,30]
[380253262,1755629043819,-400.0,0.00022999,30]
[380253263,1755629044353,-818.83,0.00022999,30]
[380253264,1755629044385,-400.0,0.00022999,30]
[380253265,1755629044416,-1316.79,0.00022999,30]
[380253266,1755629044445,-681.75,0.00022999,30]
[380253267,1755629044473,-400.0,0.00022999,30]
[380253268,1755629044502,-474.85,0.00022999,30]
[380253269,1755629044533,-400.0,0.00022999,30]
[380253270,1755629044562,-1695.14,0.00022999,30]
[380253271,1755629044598,-400.0,0.00022999,30]
[380253272,1755629044629,-2416.26,0.00022999,30]
[380253273,1755629044659,-539.73689037,0.00022999,30]
[380253274,1755629044689,-400.0,0.00022999,30]
[380253275,1755629044719,-400.0,0.00022999,30]
[380253276,1755629044750,-400.0,0.00022999,30]
[380253277,1755629044780,-400.0,0.00022999,30]
[380253278,1755629044810,-519.18,0.00022999,30]
[380253279,1755629044838,-655.03,0.00022999,30]
[380253280,1755629044867,-1073.42,0.00022999,30]
[380253281,1755629044896,-400.0,0.00022999,30]
[380253282,1755629044926,-627.5,0.00022999,30]
[380253283,1755629044955,-524.56,0.00022999,30]
[380253284,1755629044986,-400.0,0.00022999,30]
[380253285,1755629045017,-844.68,0.00022999,30]
[380253286,1755629045048,-1589.75,0.00022999,30]
[380253287,1755629045080,-1587.97,0.00022999,30]
[380253288,1755629045113,-400.0,0.00022999,30]
[380253289,1755629045151,-400.0,0.00022999,30]
[380253290,1755629045183,-400.0,0.00022999,30]
[380253291,1755629045220,-1845.81,0.00022999,30]
[380253292,1755629045253,-400.0,0.00022999,30]